bitfinex/quotes_SOLUSD_20260120
["timestamp","ask_amount","ask_price","bid_price","bid_amount"]
[1768893606310,4.31086897,131.57,131.54,4.44116965]
[1768893606505,7.86387953,131.57,131.54,4.44116965]
[1768893607620,4.31086897,131.55,131.52,4.44116965]
[1768893607934,7.74387955,131.55,131.52,4.44116965]
[1768893608127,3.55301056,131.55,131.51,4.44116965]
[1768893608501,7.60014415,131.58,131.52,4.44116965]
[1768893608823,3.55301056,131.56,131.52,4.44116965]
[1768893609025,7.60014415,131.58,131.52,4.44116965]
[1768893609207,3.55301056,131.56,131.52,4.44116965]
[1768893609608,3.49301057,131.56,131.52,4.44116965]
[1768893610124,7.80387954,131.56,131.52,4.44116965]
[1768893613427,3.55301056,131.55,131.52,4.44116965]
[1768893613829,3.55301056,131.55,131.51,7.60396557]
[1768893613830,4.31086897,131.54,131.51,4.44116965]
[1768893616133,4.31086897,131.54,131.51,12.04506939]
[1768893616611,4.31086897,131.54,131.51,4.44116965]
[1768893618910,4.31086897,131.53,131.5,4.44116965]
[1768893619440,7.86387953,131.52,131.49,4.44116965]
[1768893619611,3.55301056,131.51,131.47,4.44116965]
[1768893620118,4.31086897,131.5,131.47,4.44116965]
[1768893620628,7.86387953,131.49,131.45,4.44116965]
[1768893620933,7.86387953,131.48,131.45,4.44116965]
[1768893621156,7.86387953,131.48,131.44,4.64116965]
[1768893621308,4.31086897,131.47,131.44,4.64116965]
[1768893621515,4.25086898,131.47,131.44,4.64116965]
[1768893621724,4.25086898,131.47,131.44,0.2]
[1768893621725,3.55301056,131.47,131.44,0.2]
[1768893621910,3.55301056,131.46,131.44,0.2]
[1768893623034,3.55301056,131.47,131.44,0.2]
[1768893623537,8.01998017,131.47,131.44,0.2]
[1768893623741,3.55301056,131.47,131.44,0.2]
[1768893623908,4.46696961,131.46,131.44,0.2]
[1768893624113,8.01998017,131.47,131.44,0.2]
[1768893624516,7.95998018,131.47,131.44,0.2]
[1768893625135,3.55301056,131.46,131.44,0.2]
[1768893625435,8.01998017,131.47,131.44,0.2]
[1768893625933,4.46696961,131.46,131.44,0.2]
[1768893626120,4.46696961,131.47,131.44,0.2]
[1768893626440,8.01998017,131.47,131.44,0.2]
[1768893626939,4.46696961,131.47,131.44,0.2]
[1768893627140,8.01998017,131.47,131.44,0.2]
[1768893627438,8.01998017,131.47,131.44,4.61430119]
[1768893630118,8.01998017,131.48,131.44,4.61430119]
[1768893630714,8.01998017,131.49,131.46,4.41430119]
[1768893630937,3.55864293,131.47,131.44,4.61430119]
[1768893631529,3.49864294,131.47,131.45,4.41430119]
[1768893632142,4.46696961,131.48,131.45,4.41430119]
[1768893632444,8.02561254,131.48,131.45,4.41430119]
[1768893634818,102.1,131.5,131.46,4.41430119]
[1768893635028,110.12561254,131.5,131.47,4.41430119]
[1768893635423,4.46696961,131.49,131.46,4.41430119]
[1768893635945,4.46696961,131.5,131.47,4.41430119]
[1768893636825,8.02561254,131.5,131.47,4.41430119]
[1768893637214,4.46696961,131.5,131.47,4.41430119]
[1768893637845,16.66,131.52,131.47,4.41430119]
[1768893638041,3.55864293,131.51,131.47,4.41430119]
[1768893638339,3.49864294,131.51,131.47,4.41430119]
[1768893638917,3.55744182,131.51,131.47,4.41430119]
[1768893639958,2.88683943,131.5,131.47,4.41430119]
[1768893640126,6.44428125,131.5,131.47,4.41430119]
[1768893641029,2.88683943,131.5,131.47,4.41430119]
[1768893642725,4.33170611,131.47,131.37,4.16798441]
[1768893642924,7.88914793,131.38,131.37,1.40417011]
[1768893643227,7.88914793,131.38,131.34,0.2]
[1768893643228,4.09047988,131.36,131.35,0.1571161]
[1768893643432,4.09047988,131.36,131.34,0.2]
[1768893643620,3.968,131.4,131.34,4.26289135]
[1768893644043,3.968,131.4,131.37,4.06289135]
[1768893645145,4.04957508,131.44,131.39,4.06289135]
[1768893645336,7.88914793,131.44,131.39,20.72289135]
[1768893645541,4.33170611,131.43,131.39,20.72289135]
[1768893649147,4.33170611,131.43,131.39,16.75603264]
[1768893649350,4.33170611,131.45,131.4,3.55744182]
[1768893649650,4.33170611,131.45,131.39,20.21744182]
[1768893650528,7.88914793,131.44,131.39,24.27086745]
[1768893650848,7.88914793,131.43,131.38,7.61129074]
[1768893651061,7.88914793,131.44,131.39,24.29092317]
[1768893651233,7.88914793,131.44,131.4,4.06289135]
[1768893652330,4.33170611,131.44,131.4,4.06289135]
[1768893652532,7.88914793,131.45,131.41,4.06289135]
[1768893653836,4.33170611,131.45,131.41,4.06289135]
[1768893654226,7.88914793,131.45,131.41,4.06289135]
[1768893655355,7.97362023,131.46,131.42,4.20228316]
[1768893655562,7.97362023,131.46,131.43,16.68]
[1768893656049,4.41617841,131.47,131.43,20.88228316]
[1768893656264,4.41617841,131.49,131.44,4.20228316]
[1768893656427,4.41617841,131.49,131.45,4.20228316]
[1768893656631,4.41617841,131.49,131.46,16.68]
[1768893656857,7.97362023,131.49,131.46,16.68]
[1768893657054,4.41617841,131.49,131.46,16.68]
[1768893657254,7.97362023,131.5,131.47,4.20228316]
[1768893657438,4.41617841,131.5,131.47,4.20228316]
[1768893657647,4.41617841,131.51,131.47,4.20228316]
[1768893658456,7.97362023,131.52,131.47,4.20228316]
[1768893658940,13.14960388,131.52,131.47,4.20228316]
[1768893659471,13.14960388,131.52,131.48,4.20228316]
[1768893659757,13.14960388,131.52,131.49,16.68]
[1768893660339,13.14960388,131.5,131.45,4.20228316]
[1768893660546,13.14960388,131.5,131.46,24.28680093]
[1768893660867,4.41617841,131.5,131.47,4.20228316]
[1768893661050,13.14960388,131.5,131.47,4.20228316]
[1768893661565,4.41617841,131.5,131.48,16.68]
[1768893661863,4.41617841,131.52,131.49,4.20228316]
[1768893662164,13.14960388,131.52,131.49,4.20228316]
[1768893662657,13.14960388,131.52,131.48,20.88228316]
[1768893664967,8.73342547,131.51,131.48,20.88228316]
[1768893667255,4.41617841,131.52,131.49,4.20228316]
[1768893672066,13.14960388,131.52,131.49,4.20228316]
[1768893673760,4.41617841,131.52,131.49,4.20228316]
[1768893675067,102.1,131.54,131.5,4.20228316]
[1768893675374,102.1,131.54,131.51,20.86228316]
[1768893676176,106.51617841,131.54,131.51,20.86228316]
[1768893676967,106.51617841,131.54,131.51,28.46623343]
[1768893677680,106.51617841,131.54,131.51,20.86228316]
[1768893678578,106.51617841,131.54,131.51,28.46622697]
[1768893679169,110.07113948,131.54,131.51,16.66]
[1768893679384,106.51617841,131.54,131.52,16.66]
[1768893679576,4.41617841,131.54,131.52,16.66]
[1768893680180,7.97113948,131.56,131.52,20.86228316]
[1768893680678,4.41617841,131.55,131.52,20.86228316]
[1768893681073,4.41617841,131.55,131.52,28.46543637]
[1768893681267,4.41617841,131.57,131.52,28.46543637]
[1768893681577,4.41617841,131.56,131.52,28.46543637]
[1768893681780,4.41617841,131.56,131.53,4.20228316]
[1768893681981,102.1,131.58,131.55,4.20228316]
[1768893682173,4.41617841,131.61,131.56,20.86228316]
[1768893682486,4.41617841,131.6,131.56,20.86228316]
[1768893682863,3.55496107,131.6,131.56,20.86228316]
[1768893683187,4.41617841,131.59,131.56,20.86228316]
[1768893684985,4.23522338,131.58,131.57,16.66]
[1768893685661,4.23522338,131.57,131.53,11.7346433]
[1768893685866,7.79018445,131.57,131.54,16.66]
[1768893686071,7.79018445,131.57,131.53,11.7346433]
[1768893686373,4.23522338,131.57,131.54,28.39410017]
[1768893686774,4.23522338,131.58,131.54,28.39410017]
[1768893687789,4.23522338,131.58,131.55,4.1318909]
[1768893688182,3.55496107,131.59,131.55,4.1318909]
[1768893688590,3.55496107,131.59,131.56,11.73298545]
[1768893688897,4.23522338,131.59,131.57,16.66]
[1768893690383,7.79018445,131.59,131.57,16.66]
[1768893691985,7.79018445,131.59,131.58,16.66]
[1768893692203,7.79018445,131.59,131.56,20.7918909]
[1768893692970,4.23522338,131.59,131.56,20.7918909]
[1768893694212,4.23522338,131.59,131.56,4.1318909]
[1768893694490,4.23522338,131.59,131.56,20.7918909]
[1768893694905,3.55496107,131.58,131.56,20.7918909]
[1768893695111,7.79018445,131.59,131.56,20.7918909]
[1768893696176,7.79018445,131.59,131.56,4.1318909]
[1768893696372,7.79018445,131.59,131.56,20.7918909]
[1768893697981,7.79018445,131.59,131.56,4.1318909]
[1768893698184,7.79018445,131.59,131.56,20.7918909]
[1768893700600,4.23522338,131.57,131.54,11.73395274]
[1768893700771,4.17442386,131.57,131.55,16.66]
[1768893701902,7.72815933,131.57,131.54,4.1318909]
[1768893702079,7.72815933,131.57,131.54,20.7918909]
[1768893702796,7.98944283,131.56,131.53,4.09621351]
[1768893703090,7.98944283,131.54,131.51,4.09621351]
[1768893703398,4.43570736,131.54,131.51,20.75621351]
[1768893704198,4.43570736,131.54,131.51,4.09621351]
[1768893704400,4.43570736,131.54,131.51,20.75621351]
[1768893705307,4.43570736,131.54,131.51,4.09621351]
[1768893705595,7.60060242,131.57,131.51,20.75621351]
[1768893705797,3.55373547,131.55,131.51,20.75621351]
[1768893705977,4.43570736,131.54,131.51,20.75621351]
[1768893707398,7.98944283,131.55,131.52,4.09621351]
[1768893710202,3.55373547,131.55,131.51,11.70009338]
[1768893710413,7.98944283,131.54,131.51,28.36009338]
[1768893711297,4.43570736,131.54,131.51,28.36009338]
[1768893715292,7.98944283,131.54,131.51,11.70009338]
[1768893715520,7.98944283,131.54,131.51,28.36009338]
[1768893715815,4.43570736,131.54,131.51,28.36009338]
[1768893716002,7.98944283,131.54,131.51,28.36009338]
[1768893716203,4.43570736,131.54,131.51,28.36009338]
[1768893716514,4.43570736,131.54,131.51,11.70009338]
[1768893716715,7.98944283,131.54,131.51,28.36009338]
[1768893716888,4.43570736,131.54,131.51,28.36009338]
[1768893717088,7.98944283,131.54,131.51,28.36009338]
[1768893719818,4.43570736,131.54,131.51,28.36009338]
[1768893723316,4.21795131,131.55,131.52,4.32754522]
[1768893723520,3.55373547,131.56,131.52,4.32754522]
[1768893723705,4.21795131,131.57,131.53,4.32754522]
[1768893724022,106.31795131,131.58,131.55,4.32754522]
[1768893724194,109.87168678,131.58,131.55,4.32754522]
[1768893725623,109.87168678,131.58,131.55,11.92918941]
[1768893725925,109.87168678,131.58,131.55,4.32754522]
[1768893726220,106.31795131,131.58,131.55,4.32754522]
[1768893726613,109.87168678,131.58,131.55,11.92921318]
[1768893726819,109.87168678,131.58,131.55,4.32754522]
[1768893728510,40.99817897,131.62,131.56,4.32754522]
[1768893728511,4.21795131,131.59,131.56,4.32754522]
[1768893729023,4.21795131,131.59,131.55,11.92908328]
[1768893731527,7.77168678,131.58,131.55,4.32754522]
[1768893733110,4.21795131,131.58,131.55,4.32754522]
[1768893733420,4.21795131,131.58,131.55,11.92917707]
[1768893734511,4.21795131,131.59,131.56,4.32754522]
[1768893734822,4.21795131,131.59,131.56,11.92852261]
[1768893735222,4.21795131,131.6,131.57,4.32754522]
[1768893735626,4.21795131,131.6,131.57,20.98754522]
[1768893738329,4.21795131,131.61,131.58,4.32754522]
[1768893738533,4.21795131,131.61,131.57,27.81407614]
[1768893738712,4.21795131,131.61,131.57,28.58788589]
[1768893738915,4.21795131,131.61,131.57,32.14162136]
[1768893741034,4.21795131,131.61,131.57,27.81407614]
[1768893742720,7.77168678,131.61,131.57,20.21373547]
[1768893742914,4.21795131,131.6,131.56,15.48209919]
[1768893743115,4.21795131,131.6,131.56,20.98754522]
[1768893743116,4.45462268,131.59,131.56,20.98754522]
[1768893745712,4.45462268,131.59,131.56,16.66]
[1768893746727,4.45462268,131.59,131.54,3.55373547]
[1768893746728,4.45462268,131.59,131.54,7.60208214]
[1768893746929,4.45462268,131.58,131.54,27.81581761]
[1768893748119,4.45462268,131.58,131.54,31.97816768]
[1768893750336,4.45462268,131.58,131.54,28.42443221]
[1768893750644,4.45462268,131.58,131.54,31.97816768]
[1768893750824,4.45462268,131.6,131.57,4.16235007]
[1768893751022,4.45462268,131.6,131.56,7.71608554]
[1768893752022,4.45462268,131.6,131.56,4.16235007]
[1768893752219,4.45462268,131.59,131.55,3.55373547]
[1768893752442,4.45462268,131.59,131.55,7.71608554]
[1768893753043,4.45462268,131.59,131.56,4.16235007]
[1768893755140,4.45462268,131.59,131.55,11.76395496]
[1768893755318,4.45462268,131.59,131.55,15.31769043]
[1768893755745,4.45462268,131.58,131.52,4.16235007]
[1768893755932,4.45462268,131.54,131.5,4.16235007]
[1768893756124,8.00835815,131.54,131.5,20.82235007]
[1768893756448,8.00835815,131.54,131.5,4.16235007]
[1768893756644,8.00835815,131.54,131.5,20.82235007]
[1768893756826,8.00835815,131.53,131.5,4.16235007]
[1768893757222,8.00835815,131.53,131.49,20.82235007]
[1768893757428,4.45462268,131.52,131.49,20.82235007]
[1768893758342,4.45462268,131.52,131.49,4.16235007]
[1768893758544,8.00835815,131.53,131.49,4.16235007]
[1768893759147,4.45462268,131.51,131.48,20.82235007]
[1768893759947,4.45462268,131.51,131.47,28.4284486]
[1768893760149,4.45462268,131.51,131.48,4.16235007]
[1768893761250,8.00835815,131.51,131.48,4.16235007]
[1768893762850,4.28734732,131.5,131.47,4.10733619]
[1768893766140,4.28734732,131.51,131.48,4.10733619]
[1768893767255,4.28734732,131.5,131.47,7.60626502]
[1768893767462,4.28734732,131.51,131.47,11.71360121]
[1768893768855,4.28734732,131.53,131.48,4.10733619]
[1768893769042,4.28734732,131.51,131.48,4.10733619]
[1768893772663,4.28734732,131.5,131.47,11.71360121]
[1768893776861,4.46093897,131.52,131.49,4.34851169]
[1768893777047,8.01815986,131.51,131.47,4.34851169]
[1768893777244,8.01815986,131.51,131.48,4.34851169]
[1768893777659,4.46093897,131.51,131.48,4.34851169]
[1768893779975,4.46093897,131.52,131.49,4.34851169]
[1768893780268,4.46093897,131.53,131.49,4.34851169]
[1768893780569,4.46093897,131.53,131.5,4.34851169]
[1768893782268,4.46093897,131.53,131.5,15.5101786]
[1768893782468,16.66,131.56,131.52,7.90573258]
[1768893782469,4.46093897,131.56,131.52,7.90573258]
[1768893783463,4.46093897,131.56,131.52,4.34851169]
[1768893783671,4.46093897,131.56,131.52,7.90573258]
[1768893784251,4.46093897,131.56,131.52,15.50907322]
[1768893785475,4.46093897,131.56,131.52,11.95185233]
[1768893785674,4.46093897,131.56,131.52,15.50907322]
[1768893785877,4.46093897,131.55,131.52,4.34851169]
[1768893786075,4.46093897,131.53,131.49,4.34851169]
[1768893786278,4.46093897,131.52,131.49,11.95344301]
[1768893786452,4.40093892,131.52,131.48,32.17126686]
[1768893786654,4.40093892,131.52,131.49,11.95363317]
[1768893788062,3.55722089,131.54,131.49,15.51085406]
[1768893788373,7.60074906,131.57,131.5,7.90573258]
[1768893788579,3.55722089,131.55,131.5,7.90573258]
[1768893789356,7.60074906,131.57,131.5,15.51007726]
[1768893789679,3.55722089,131.55,131.5,15.51007726]
[1768893789973,4.46093897,131.54,131.5,15.51007726]
[1768893793177,4.46093897,131.57,131.53,4.34851169]
[1768893793475,4.46093897,131.56,131.52,7.90573258]
[1768893793658,4.46093897,131.56,131.52,4.34851169]
[1768893794678,4.46093897,131.55,131.52,4.34851169]
[1768893797481,4.46093897,131.55,131.51,11.95224327]
[1768893797669,8.01815986,131.55,131.51,11.95224327]
[1768893797865,4.46093897,131.54,131.5,15.51007868]
[1768893798064,4.46093897,131.54,131.51,4.34851169]
[1768893798276,4.46093897,131.54,131.51,11.95238766]
[1768893798662,4.46093897,131.54,131.51,4.34851169]
[1768893799873,4.46093897,131.54,131.51,11.95244093]
[1768893801382,4.46093897,131.54,131.51,4.34851169]
[1768893804888,4.16974578,131.57,131.54,4.44963769]
[1768893805071,4.16974578,131.57,131.53,8.00685858]
[1768893805276,106.26974578,131.58,131.54,8.00685858]
[1768893805479,4.16974578,131.58,131.55,4.44963769]
[1768893805668,4.16974578,131.58,131.55,8.00685858]
[1768893807488,4.16974578,131.58,131.55,4.44963769]
[1768893808494,4.16974578,131.58,131.55,8.00685858]
[1768893809997,4.16974578,131.58,131.55,15.6084454]
[1768893810295,4.16974578,131.58,131.55,8.00685858]
[1768893810485,4.16974578,131.58,131.55,4.44963769]
[1768893810688,4.16974578,131.63,131.56,16.66]
[1768893810986,4.16974578,131.63,131.57,4.44963769]
[1768893811184,4.16974578,131.63,131.57,21.10963769]
[1768893811185,3.55722089,131.62,131.57,21.10963769]
[1768893811373,3.55722089,131.62,131.57,4.44963769]
[1768893811567,4.16974578,131.63,131.56,11.15809605]
[1768893811568,3.55722089,131.6,131.56,4.44963769]
[1768893811882,11.76681936,131.63,131.54,12.05185173]
[1768893811883,3.55722089,131.59,131.54,12.05185173]
[1768893812076,3.55722089,131.59,131.54,15.60907262]
[1768893812474,3.55722089,131.59,131.54,12.05185173]
[1768893813090,4.16974578,131.57,131.53,8.00685858]
[1768893813288,4.16974578,131.57,131.53,12.05236966]
[1768893815192,4.10974578,131.57,131.54,4.44963769]
[1768893817093,24.25841856,131.61,131.55,4.44963769]
[1768893817292,7.72696667,131.59,131.55,4.44963769]
[1768893817490,4.16974578,131.59,131.55,4.44963769]
[1768893818004,3.55722089,131.59,131.54,11.15945588]
[1768893818185,4.16974578,131.58,131.54,15.60909357]
[1768893818380,4.16974578,131.58,131.54,4.44963769]
[1768893818780,4.16974578,131.57,131.54,4.44963769]
[1768893818984,4.16974578,131.57,131.53,12.05241438]
[1768893819407,7.72696667,131.57,131.53,12.05241438]
[1768893819583,4.16974578,131.56,131.52,12.05288232]
[1768893820507,3.55722089,131.57,131.5,4.44963769]
[1768893820508,4.16974578,131.54,131.5,4.44963769]
[1768893820708,4.16974578,131.54,131.49,7.60460759]
[1768893820709,3.55722089,131.53,131.49,4.44963769]
[1768893820888,7.60122973,131.56,131.49,12.054657]
[1768893820889,3.55722089,131.54,131.49,12.054657]
[1768893821599,7.60122973,131.56,131.49,12.054657]
[1768893821792,3.55722089,131.54,131.49,12.054657]
[1768893822595,4.10289996,131.53,131.49,12.054657]
[1768893826128,3.55593526,131.55,131.51,4.3910538]
[1768893826321,4.10289996,131.54,131.51,4.3910538]
[1768893832425,4.10289996,131.54,131.5,3.55593526]
[1768893832630,3.55593526,131.55,131.49,4.3910538]
[1768893832631,4.10289996,131.52,131.49,4.3910538]
[1768893834028,4.10289996,131.52,131.49,15.55204665]
[1768893835939,4.10289996,131.52,131.49,4.3910538]
[1768893837320,4.10289996,131.52,131.49,15.55206744]
[1768893837522,4.10289996,131.52,131.48,11.83997853]
[1768893837737,4.10289996,131.52,131.48,15.39591379]
[1768893841145,7.65883522,131.52,131.48,4.23442467]
[1768893841336,4.22230166,131.51,131.48,4.23442467]
[1768893841639,4.16230166,131.51,131.48,4.23442467]
[1768893844119,4.10230166,131.51,131.48,4.23442467]
[1768893846042,11.15838998,131.54,131.48,7.79035993]
[1768893846252,4.22230166,131.48,131.44,4.23442467]
[1768893846428,4.22230166,131.47,131.44,4.23442467]
[1768893846625,4.22230166,131.46,131.42,7.79035993]
[1768893846851,4.22230166,131.46,131.42,4.23442467]
[1768893847032,4.22230166,131.46,131.42,15.39946408]
[1768893847343,4.22230166,131.46,131.43,15.39884601]
[1768893856272,4.22230166,131.46,131.43,4.23442467]
[1768893860173,4.22230166,131.46,131.41,19.12386827]
[1768893860174,4.22230166,131.45,131.41,15.49986293]
[1768893860885,4.22230166,131.42,131.41,0.1]
[1768893861088,4.22230166,131.42,131.37,4.33442467]
[1768893861089,4.22230166,131.41,131.37,4.33442467]
[1768893861260,4.22230166,131.4,131.37,4.33442467]
[1768893861461,4.22230166,131.4,131.37,0.1]
[1768893862080,4.22230166,131.39,131.37,0.1]
[1768893862258,7.77823692,131.41,131.37,0.1]
[1768893862458,4.22230166,131.4,131.35,7.61317226]
[1768893862686,4.22230166,131.39,131.35,11.16910752]
[1768893862982,4.22230166,131.39,131.35,15.40353219]
[1768893863189,4.43640948,131.4,131.36,7.69433725]
[1768893864474,4.43640948,131.4,131.36,4.13840199]
[1768893864664,4.43640948,131.4,131.36,7.69433725]
[1768893866682,4.43640948,131.42,131.38,7.69433725]
[1768893867680,4.43640948,131.42,131.38,3.55593526]
[1768893867888,4.43640948,131.42,131.37,7.69433725]
[1768893868985,4.43640948,131.42,131.38,7.69433725]
[1768893869695,4.43640948,131.42,131.38,4.13840199]
[1768893869867,4.43640948,131.42,131.38,7.69433725]
[1768893871894,4.43640948,131.42,131.38,15.30578712]
[1768893872269,4.43640948,131.42,131.39,4.13840199]
[1768893872571,4.43640948,131.42,131.38,7.69433725]
[1768893872773,4.43640948,131.41,131.38,11.74989288]
[1768893873484,4.43640948,131.41,131.38,15.30582814]
[1768893873692,4.43640948,131.41,131.38,11.74989288]
[1768893873999,4.43640948,131.41,131.38,15.30582814]
[1768893875396,4.37640949,131.41,131.39,3.55593526]
[1768893875793,4.37640949,131.41,131.38,15.30582814]
[1768893876800,4.37640949,131.41,131.38,4.13840199]
[1768893877495,4.37640949,131.41,131.38,11.7499038]
[1768893877999,4.37640949,131.41,131.38,15.30583906]
[1768893879698,20.21593526,131.43,131.39,7.69433725]
[1768893879699,21.09640948,131.43,131.39,7.69433725]
[1768893879886,21.09640948,131.43,131.4,4.13840199]
[1768893880414,4.43640948,131.42,131.39,7.69433725]
[1768893880808,4.43640948,131.44,131.4,4.13840199]
[1768893880994,4.43640948,131.44,131.41,4.13840199]
[1768893881195,4.43640948,131.44,131.4,7.69433725]
[1768893882509,4.43640948,131.44,131.4,15.30439274]
[1768893883902,4.25875325,131.42,131.37,4.10291289]
[1768893884104,4.25875325,131.42,131.37,7.65884815]
[1768893884105,4.25875325,131.41,131.37,7.65884815]
[1768893884497,4.25875325,131.41,131.38,7.61150369]
[1768893884797,4.25875325,131.41,131.37,11.71477013]
[1768893885119,4.25875325,131.41,131.37,7.61185724]
[1768893885120,4.25875325,131.4,131.37,7.61185724]
[1768893885292,4.25875325,131.4,131.37,11.71477013]
[1768893885293,4.19875326,131.4,131.37,11.71477013]
[1768893887214,4.13875327,131.4,131.37,11.71477013]
[1768893887715,4.02874137,131.4,131.37,11.71477013]
[1768893887909,4.02874137,131.4,131.37,15.27722359]
[1768893888115,7.60818534,131.44,131.38,3.56245346]
[1768893888294,3.56245346,131.43,131.38,3.56245346]
[1768893888892,3.56245346,131.43,131.38,7.66536635]
[1768893889719,4.25875325,131.42,131.38,7.66536635]
[1768893892494,4.25875325,131.42,131.38,4.10291289]
[1768893892699,4.25875325,131.42,131.38,7.66536635]
[1768893894044,4.25875325,131.42,131.38,4.10291289]
[1768893894221,4.25875325,131.42,131.38,7.66536635]
[1768893894623,4.25875325,131.42,131.38,4.10291289]
[1768893894827,4.25875325,131.42,131.38,7.66536635]
[1768893897517,4.25875325,131.42,131.38,15.2768174]
[1768893897911,4.25875325,131.42,131.38,3.56245346]
[1768893898126,4.25875325,131.42,131.38,11.17394108]
[1768893898319,4.25875325,131.42,131.39,4.39511542]
[1768893898522,4.25875325,131.42,131.39,7.95756888]
[1768893898721,4.37255598,131.44,131.39,12.00589957]
[1768893899037,4.37255598,131.44,131.4,4.39511542]
[1768893899813,4.37255598,131.44,131.4,12.00535998]
[1768893900030,4.37255598,131.44,131.4,15.56781344]
[1768893902037,4.37255598,131.44,131.41,4.39511542]
[1768893902223,4.37255598,131.44,131.41,7.95756888]
[1768893903336,4.37255598,131.45,131.42,7.95756888]
[1768893903740,4.37255598,131.45,131.42,4.39511542]
[1768893903917,4.37255598,131.45,131.42,7.95756888]
[1768893904840,4.37255598,131.45,131.42,4.39511542]
[1768893905042,4.37255598,131.45,131.42,7.95756888]
[1768893905916,4.37255598,131.45,131.42,4.39511542]
[1768893906125,4.37255598,131.45,131.42,7.95756888]
[1768893906325,4.37255598,131.45,131.42,4.39511542]
[1768893908927,4.37255598,131.45,131.41,7.95756888]
[1768893909134,4.37255598,131.44,131.41,4.39511542]
[1768893913032,4.37255598,131.44,131.41,12.0045604]
[1768893913538,4.37255598,131.46,131.42,7.95756888]
[1768893913741,4.37255598,131.46,131.42,4.39511542]
[1768893913926,4.37255598,131.46,131.42,7.95756888]
[1768893914733,4.37255598,131.46,131.43,4.39511542]
[1768893915946,4.37255598,131.46,131.43,15.56611074]
[1768893916145,4.37255598,131.48,131.45,4.39511542]
[1768893916349,4.37255598,131.48,131.45,7.95756888]
[1768893918055,4.37255598,131.48,131.45,4.39511542]
[1768893920826,4.37255598,131.47,131.42,15.56656823]
[1768893921027,4.37255598,131.46,131.42,15.56656823]
[1768893921452,4.37255598,131.46,131.43,4.39511542]
[1768893922351,4.37255598,131.46,131.42,4.39511542]
[1768893925043,4.37255598,131.46,131.42,7.95756888]
[1768893926034,4.37255598,131.46,131.43,4.41554186]
[1768893926342,106.53027339,131.49,131.46,4.41554186]
[1768893926563,106.53027339,131.49,131.46,7.97799532]
[1768893927450,106.53027339,131.49,131.45,7.60744628]
[1768893927451,4.43027339,131.48,131.45,7.97799532]
[1768893928042,4.43027339,131.48,131.44,7.97799532]
[1768893928359,4.43027339,131.48,131.44,15.58596044]
[1768893930944,4.43027339,131.49,131.46,4.41554186]
[1768893931157,4.43027339,131.49,131.45,15.58542276]
[1768893934463,4.43027339,131.49,131.42,19.02297975]
[1768893934464,4.43027339,131.48,131.44,7.97799532]
[1768893935858,4.43027339,131.48,131.44,4.41554186]
[1768893936870,4.43027339,131.48,131.44,7.97799532]
[1768893937052,4.43027339,131.48,131.45,4.41554186]
[1768893938158,4.43027339,131.48,131.44,4.41554186]
[1768893938364,4.43027339,131.48,131.45,4.41554186]
[1768893942955,4.43027339,131.48,131.44,11.79168017]
[1768893943157,4.16268861,131.47,131.43,11.79219457]
[1768893943662,4.16268861,131.47,131.44,4.18367299]
[1768893949956,4.16268861,131.46,131.41,4.18367299]
[1768893950165,4.16268861,131.45,131.42,4.18367299]
[1768893950468,4.16268861,131.45,131.42,15.35140185]
[1768893950653,4.16268861,131.45,131.43,4.18367299]
[1768893950853,4.16268861,131.47,131.43,4.18367299]
[1768893951062,4.16268861,131.46,131.43,4.18367299]
[1768893952271,4.16268861,131.46,131.42,4.18367299]
[1768893952475,4.16268861,131.45,131.41,4.18367299]
[1768893954364,4.16268861,131.45,131.42,4.21827487]
[1768893955662,4.16268861,131.45,131.42,7.77705713]
[1768893955862,4.17954403,131.46,131.43,7.77705713]
[1768893956064,20.83954403,131.47,131.44,4.21827487]
[1768893956271,20.83954403,131.47,131.44,7.77705713]
[1768893958076,20.83954403,131.47,131.44,4.21827487]
[1768893958371,4.17954403,131.46,131.42,15.385971]
[1768893959282,4.17954403,131.45,131.41,15.38663441]
[1768893959460,4.17954403,131.45,131.42,4.21827487]
[1768893960954,4.17954403,131.45,131.42,7.77705713]
[1768893961679,4.17954403,131.46,131.43,4.21827487]
[1768893968982,4.17954403,131.46,131.42,4.21827487]
[1768893971586,3.55878226,131.46,131.42,4.21827487]
[1768893971888,4.17954403,131.45,131.42,4.21827487]
[1768893972180,4.17954403,131.45,131.4,11.82831359]
[1768893972359,4.17954403,131.45,131.41,4.21827487]
[1768893972360,4.17954403,131.44,131.41,4.21827487]
[1768893972564,3.55878226,131.46,131.41,4.21827487]
[1768893973882,3.55878226,131.45,131.41,4.21827487]
[1768893974075,3.55878226,131.44,131.4,4.21827487]
[1768893974469,7.73832629,131.44,131.4,4.21827487]
[1768893975292,4.17954403,131.41,131.38,4.21827487]
[1768893975470,7.6783263,131.41,131.38,4.21827487]
[1768893975975,3.55878226,131.41,131.37,4.21827487]
[1768893977690,7.73832629,131.41,131.37,4.21827487]
[1768893979286,4.17954403,131.41,131.37,4.21827487]
[1768893979463,4.17954403,131.41,131.37,15.38912363]
[1768893979668,4.17954403,131.41,131.38,4.21827487]
[1768893980476,4.17954403,131.42,131.38,4.21827487]